bitfinex/quotes_ETHUSD_20241203
["timestamp","ask_amount","ask_price","bid_price","bid_amount"]
[1733239255770,0.55,3583.1,3582.2,2.79155]
[1733239255955,0.55,3583.1,3582.5,0.54810967]
[1733239256374,0.19999161,3582.9,3582.5,0.54810967]
[1733239256576,0.55,3582.8,3582.5,0.54810967]
[1733239256870,0.55,3582.6,3581.3,1.6326]
[1733239257076,0.19999161,3582.9,3581.7,2.79197]
[1733239257370,0.55,3582.8,3582.4,0.56067459]
[1733239258035,0.1,3583.3,3582.4,0.56067459]
[1733239258228,0.65,3583.3,3582.7,2.79118]
[1733239258433,0.55,3583.1,3582.4,0.56067459]
[1733239259576,0.65,3583.3,3582.5,0.33521846]
[1733239259744,0.55,3583.3,3582.5,0.33521846]
[1733239259950,0.55,3583.4,3582.6,2.79121]
[1733239260154,0.29999161,3583.9,3582.5,0.33521846]
[1733239260390,0.29999161,3583.9,3582.4,2.79135]
[1733239260543,0.355452,3583.8,3582.7,2.79115]
[1733239260889,0.355452,3583.8,3582.4,2.79135]
[1733239260890,0.19999161,3583.6,3583.3,2.79072]
[1733239261056,0.19999161,3583.6,3582.8,2.79108]
[1733239261242,0.19999161,3583.6,3582.1,4.5481]
[1733239261243,0.19999161,3583.6,3583.0,2.7909]
[1733239261449,0.42038462,3583.2,3583.0,3.06999]
[1733239261666,0.84669586,3583.1,3582.6,2.79125]
[1733239261869,0.84669586,3583.0,3582.7,2.79118]
[1733239262068,0.84669586,3582.9,3582.8,0.54765362]
[1733239262293,0.55,3582.8,3582.5,2.79134]
[1733239262466,0.67212982,3582.7,3582.6,2.79119]
[1733239262645,0.67212982,3582.7,3582.5,0.279134]
[1733239262848,0.43307751,3582.6,3582.3,2.79142]
[1733239263087,0.68936392,3582.5,3582.4,2.79142]
[1733239263463,0.84669586,3582.5,3582.4,2.79142]
[1733239264788,0.67212982,3582.5,3582.4,2.79142]
[1733239265294,0.25851147,3582.5,3582.4,2.79142]
[1733239265499,2.07825241,3583.4,3582.4,0.77737407]
[1733239265795,0.85081503,3583.3,3583.1,2.79087]
[1733239266089,0.59072548,3583.2,3583.0,2.79094]
[1733239266256,0.59072548,3583.1,3583.0,2.79094]
[1733239266460,0.85081503,3583.1,3583.0,2.79094]
[1733239266645,0.29999161,3583.9,3582.4,3.0]
[1733239266852,0.26015619,3583.8,3583.7,2.79038]
[1733239267261,0.26015619,3583.8,3583.1,2.79086]
[1733239267467,0.19999161,3583.6,3582.5,3.3]
[1733239267667,0.1,3584.1,3582.5,3.3]
[1733239267855,0.19999161,3584.4,3584.3,2.78994]
[1733239268054,0.8511501,3584.4,3584.3,2.78994]
[1733239268391,0.87659313,3584.4,3584.0,2.79013]
[1733239268599,0.67669361,3584.3,3583.0,1.5887]
[1733239268805,1.5877,3584.6,3583.0,1.5887]
[1733239268806,0.1,3584.5,3584.4,2.78985]
[1733239268958,1.5877,3584.6,3584.4,2.78985]
[1733239269294,0.1,3584.7,3584.6,2.78971]
[1733239269453,0.1,3584.7,3584.2,0.57195844]
[1733239269652,0.26029766,3584.6,3584.2,0.57195844]
[1733239269884,0.29999161,3584.7,3584.2,0.57195844]
[1733239270089,0.1,3584.7,3584.2,0.57195844]
[1733239270289,0.29999161,3584.7,3584.2,0.57195844]
[1733239270498,0.1,3584.7,3584.2,0.57195844]
[1733239270678,0.26019767,3584.6,3584.2,0.57195844]
[1733239270893,0.29999161,3584.7,3584.2,0.57195844]
[1733239271200,0.26019903,3584.6,3583.1,0.78997092]
[1733239271494,0.26019903,3584.6,3584.5,0.56724958]
[1733239271799,0.19999161,3584.4,3582.0,0.55]
[1733239272270,0.03487067,3585.0,3584.0,0.54804538]
[1733239272606,0.43382943,3585.7,3584.7,0.1]
[1733239272790,0.43351059,3586.6,3584.2,0.55]
[1733239272996,1.5142,3586.4,3583.9,0.1]
[1733239273204,1.72468311,3586.4,3585.0,0.56814279]
[1733239273407,0.03485783,3586.3,3585.0,0.56814279]
[1733239273619,1.72468311,3586.4,3585.0,0.56814279]
[1733239273620,0.5901556,3586.2,3585.0,0.56814279]
[1733239273835,0.41570005,3586.1,3585.0,0.56814279]
[1733239274166,0.41571689,3586.0,3585.0,0.56814279]
[1733239274375,1.5653,3585.8,3584.2,1.6593]
[1733239274580,1.5653,3585.8,3583.3,1.6593]
[1733239274581,0.55,3585.6,3583.3,1.6593]
[1733239274789,0.55,3585.6,3584.4,0.55870817]
[1733239275394,1.5653,3585.8,3584.5,1.5189]
[1733239275715,1.5653,3585.8,3583.8,4.523]
[1733239275863,1.5653,3585.8,3584.7,0.54888277]
[1733239276064,0.15653,3585.7,3584.7,0.54888277]
[1733239276268,1.5653,3585.8,3584.7,0.54888277]
[1733239277680,1.5653,3585.8,3584.5,3.0]
[1733239278289,1.5653,3585.8,3585.3,0.54496535]
[1733239279043,1.5234,3586.4,3585.3,0.54496535]
[1733239281119,0.03485624,3586.3,3585.3,0.54496535]
[1733239281323,0.15582562,3586.3,3585.3,0.54496535]
[1733239281618,0.55,3586.3,3585.3,0.54496535]
[1733239282213,5.770264,3585.8,3584.0,1.22071939]
[1733239282434,3.4891766,3584.3,3584.0,1.22071939]
[1733239282644,5.28943042,3584.2,3583.3,4.32473251]
[1733239282821,2.90786767,3583.4,3583.3,4.32473251]
[1733239283008,4.32769799,3583.4,3583.3,4.75720576]
[1733239283214,4.14923447,3583.4,3583.3,4.75720576]
[1733239283450,4.14923447,3583.4,3583.3,5.30652503]
[1733239283658,1.38427712,3583.4,3583.3,5.30652503]
[1733239284209,2.54769465,3583.4,3583.3,0.54931927]
[1733239284415,3.30853733,3583.4,3583.3,0.54931927]
[1733239284738,3.30853733,3583.4,3583.3,4.87405178]
[1733239284951,1.41489888,3583.4,3583.3,4.87405178]
[1733239285135,0.38707644,3583.4,3583.3,6.43895178]
[1733239285319,5.2354403,3583.5,3583.3,7.09284696]
[1733239285624,5.2354403,3583.5,3583.4,3.0]
[1733239286401,1.46676483,3583.5,3583.3,7.09284696]
[1733239286550,4.80812902,3584.6,3583.5,1.5054]
[1733239286850,4.80812902,3584.6,3583.9,4.32473251]
[1733239287055,4.80812902,3584.6,3584.0,0.43247325]
[1733239287617,4.80812902,3584.6,3584.5,4.5785]
[1733239287846,5.770264,3585.0,3584.5,4.5785]
[1733239288752,5.770264,3585.0,3584.9,4.32473251]
[1733239288954,5.770264,3585.0,3584.9,7.32473251]
[1733239289252,5.770264,3585.0,3584.9,8.05720576]
[1733239289456,6.73197467,3585.8,3585.1,1.5468]
[1733239289614,1.5433,3587.3,3585.7,3.0]
[1733239289820,1.5433,3587.3,3585.8,1.5402]
[1733239290152,4.80855333,3587.8,3585.8,2.43669325]
[1733239290455,1.5496,3588.1,3586.4,3.0]
[1733239290812,1.74126454,3589.2,3587.4,3.0]
[1733239290813,0.25920902,3588.9,3587.4,3.0]
[1733239291013,1.96433443,3589.2,3587.5,1.5515]
[1733239291014,1.5496,3589.2,3587.5,1.5515]
[1733239293973,0.03482829,3589.1,3587.5,1.5515]
[1733239294132,0.03482829,3589.1,3587.6,0.15515]
[1733239294133,0.55,3589.1,3587.6,0.15515]
[1733239294687,0.58483131,3589.1,3587.6,0.15515]
[1733239294982,0.58483131,3589.1,3587.0,2.02403348]
[1733239295278,0.55,3589.1,3587.0,2.02403348]
[1733239295431,0.03483522,3589.0,3587.0,1.6659]
[1733239295631,0.55,3588.8,3587.0,1.6659]
[1733239295968,0.55,3588.8,3587.1,0.16659]
[1733239296834,1.6256,3589.4,3587.5,3.0]
[1733239297131,1.6256,3589.4,3587.2,1.52]
[1733239297977,1.6256,3589.4,3588.2,0.54495866]
[1733239298530,0.0348247,3589.3,3587.2,1.52]
[1733239298737,0.16604247,3589.2,3588.0,0.56291759]
[1733239298935,1.6256,3589.4,3588.0,0.56291759]
[1733239299532,0.55,3589.3,3588.0,0.56291759]
[1733239300176,1.6256,3589.4,3587.5,3.0]
[1733239300337,1.6256,3589.4,3587.6,1.5222]
[1733239300737,1.6256,3589.4,3589.1,0.55265535]
[1733239300975,1.59442325,3590.9,3589.1,0.55265535]
[1733239301161,1.5596,3590.7,3589.1,0.55265535]
[1733239301363,1.59442024,3590.7,3589.1,0.55265535]
[1733239301593,1.5596,3590.7,3589.1,0.55265535]
[1733239302386,0.55,3590.6,3589.1,0.55265535]
[1733239303602,0.03481691,3590.5,3589.1,0.55265535]
[1733239303765,2.1588,3590.4,3589.1,0.55265535]
[1733239303962,0.55,3590.2,3589.1,0.55265535]
[1733239304182,0.55,3590.0,3588.1,1.5588]
[1733239304468,1.5426,3589.4,3587.2,1.659]
[1733239304699,0.55,3589.1,3586.8,1.659]
[1733239305012,2.0926,3588.9,3586.8,1.659]
[1733239305365,0.55,3588.7,3587.2,0.5584938]
[1733239305703,0.55,3588.4,3587.2,0.5584938]
[1733239305915,1.5426,3588.5,3587.2,0.5584938]
[1733239306084,1.5426,3588.5,3587.3,1.5139]
[1733239307015,0.56986887,3589.0,3587.3,1.5139]
[1733239307196,0.56986887,3589.0,3587.4,0.24252274]
[1733239307501,1.6527,3589.2,3587.4,0.24252274]
[1733239308878,0.03482726,3589.1,3587.4,0.24252274]
[1733239309094,1.6527,3589.2,3587.4,0.24252274]
[1733239309304,0.55,3589.1,3587.4,0.24252274]
[1733239309606,0.03483037,3589.8,3587.4,0.24252274]
[1733239309607,0.03483037,3589.8,3588.0,4.5638]
[1733239309810,1.6485,3589.7,3588.0,1.5638]
[1733239310184,0.03482629,3589.6,3588.0,1.5638]
[1733239310380,0.03483027,3589.6,3588.0,1.5638]
[1733239310577,0.16833303,3589.5,3587.6,0.32109256]
[1733239310882,0.55,3589.1,3587.4,0.54628444]
[1733239311110,0.55,3588.9,3587.4,0.54628444]
[1733239311328,0.55,3589.1,3587.4,0.54628444]
[1733239311810,0.55,3588.9,3587.4,0.54628444]
[1733239311975,1.6127,3588.6,3587.4,0.54628444]
[1733239312170,0.55,3588.4,3587.4,0.54628444]
[1733239312421,0.55,3588.5,3587.4,0.54628444]
[1733239312571,0.55,3588.5,3586.9,2.40238944]
[1733239313095,0.55,3588.5,3587.7,0.54606137]
[1733239313301,0.55,3588.5,3586.9,2.40238944]
[1733239313612,0.55,3588.5,3587.6,0.57143493]
[1733239315374,0.58483718,3588.5,3587.6,0.57143493]
[1733239315884,0.55,3588.5,3587.6,0.57143493]
[1733239316086,1.5627,3588.2,3587.6,0.57143493]
[1733239316309,1.5627,3588.2,3586.2,0.1332]
[1733239316310,0.55,3587.9,3586.2,0.1332]
[1733239316564,0.55,3587.7,3586.2,0.1332]
[1733239316812,0.2531899,3587.8,3584.5,0.73599636]
[1733239316813,0.55,3587.5,3585.7,0.1332]
[1733239317321,0.55,3587.3,3585.7,0.1332]
[1733239317622,0.55,3587.5,3587.1,0.56592618]
[1733239318116,0.55,3587.5,3585.7,0.1332]
[1733239318419,0.55,3587.5,3586.3,0.55343308]
[1733239319186,4.32473251,3588.7,3586.3,0.55343308]
[1733239319187,0.2598196,3587.8,3586.4,0.1332]
[1733239319392,0.03484024,3588.0,3586.4,0.1332]
[1733239319587,1.91861935,3587.9,3586.3,0.55343308]
[1733239319878,0.26001935,3587.8,3585.8,0.1332]
[1733239320174,1.6586,3587.6,3586.2,0.54913858]
[1733239320604,0.03484481,3587.5,3586.2,0.54913858]
[1733239320989,0.26006653,3587.4,3586.2,0.54913858]
[1733239321189,1.6586,3587.6,3586.2,0.54913858]
[1733239321590,0.55,3587.5,3586.2,0.54913858]
[1733239322337,1.6116,3588.5,3586.2,0.54913858]
[1733239322490,1.18243841,3588.4,3586.3,0.1332]
[1733239322688,0.25985404,3588.3,3586.3,0.1332]
[1733239322904,1.6116,3588.5,3586.6,0.1332]
[1733239323148,0.25982414,3588.4,3586.6,0.1332]
[1733239323334,1.6116,3588.5,3586.6,0.1332]
[1733239323538,0.25980947,3588.4,3586.6,0.49167011]
[1733239323850,1.6116,3588.5,3586.6,0.49167011]
[1733239324218,0.42096697,3588.4,3586.6,0.49167011]
[1733239324446,1.6116,3588.5,3587.2,0.56468014]
[1733239324827,0.25981358,3588.4,3587.2,0.56468014]
[1733239325150,1.6116,3588.5,3587.2,0.56468014]
[1733239325303,0.29464227,3588.4,3586.6,0.49167011]
[1733239325506,0.25980674,3588.3,3586.6,0.1332]
[1733239325754,0.55,3588.2,3586.6,0.1332]
[1733239325971,0.80982341,3588.2,3586.6,0.1332]
[1733239326106,0.80982341,3588.2,3587.1,0.56551711]
[1733239326307,0.55,3588.0,3587.1,0.56551711]
[1733239326547,2.1084,3587.8,3585.5,0.1332]
[1733239326760,0.55,3587.6,3585.6,0.44579325]
[1733239326913,0.55,3587.4,3585.5,0.1332]
[1733239327113,0.55,3587.2,3586.0,0.54738262]
[1733239327448,0.55,3587.2,3585.5,0.1332]
[1733239327658,0.55,3587.0,3585.5,0.1332]
[1733239327876,2.1084,3587.0,3586.0,0.55597558]
[1733239328158,0.55,3587.0,3586.0,0.55597558]
[1733239328360,0.55,3587.3,3586.0,0.55597558]
[1733239328564,0.55,3587.6,3586.1,0.1332]
[1733239328925,1.5584,3587.9,3586.1,0.1332]
[1733239329145,1.5584,3587.9,3586.7,0.55938085]
[1733239330143,0.55,3587.8,3586.1,0.1332]
[1733239330355,0.58484288,3587.8,3586.4,0.553522]
[1733239330539,0.58484288,3587.8,3586.1,0.1332]
[1733239330722,0.84454855,3587.8,3586.1,0.1332]
[1733239330930,0.84454855,3587.8,3585.5,0.36483641]
[1733239330931,0.55,3587.6,3585.5,0.36483641]
[1733239331129,0.55,3587.4,3584.8,0.43621863]
[1733239331324,0.55,3587.2,3584.8,0.43621863]
[1733239331525,0.55,3587.0,3584.8,0.43621863]
[1733239331775,0.80970567,3587.0,3584.8,0.78810865]
[1733239331943,0.55,3587.0,3584.9,4.32473251]
[1733239332137,0.80970567,3587.2,3585.0,0.51128412]
[1733239332372,0.55,3587.0,3585.7,0.56669046]
[1733239332879,0.55,3586.9,3585.7,0.56669046]
[1733239333029,0.55,3587.0,3585.7,0.56669046]
[1733239333376,0.55,3586.8,3585.0,3.51128412]
[1733239333526,0.55,3586.6,3585.1,0.81879067]
[1733239333727,0.55,3586.2,3585.3,0.553522]
[1733239333927,1.5899,3586.3,3582.9,5.74844135]
[1733239333928,0.55,3586.0,3582.9,5.74844135]
[1733239334131,0.55,3585.5,3582.9,5.74844135]
[1733239334329,1.5899,3585.6,3583.3,0.7824866]
[1733239334330,0.55,3585.3,3583.3,0.7824866]
[1733239334546,0.55,3585.1,3583.3,0.7824866]
[1733239334888,0.55,3585.4,3583.3,0.7824866]
[1733239335034,0.55,3585.4,3584.0,0.55642352]
[1733239335233,0.25980602,3585.9,3584.4,4.32473251]
[1733239335473,2.81836794,3586.4,3584.4,4.32473251]
[1733239335784,0.03485565,3586.3,3584.4,4.32473251]
[1733239336116,1.6597,3586.4,3584.4,4.32473251]
[1733239336417,1.6597,3586.4,3584.5,3.0]
[1733239336715,1.6597,3586.4,3584.1,0.4881156]
[1733239336716,0.2594679,3586.8,3585.3,0.56894073]
[1733239336869,0.03485245,3586.7,3585.3,0.56894073]
[1733239337276,1.6381,3586.6,3585.3,0.56894073]
[1733239337587,0.03485983,3586.5,3585.4,2.78908]
[1733239337770,0.55,3586.4,3585.3,0.56894073]
[1733239337969,0.55,3586.2,3585.4,2.78908]
[1733239338418,0.55,3586.3,3585.4,2.78908]
[1733239338719,0.55,3586.3,3585.3,0.56894073]
[1733239338720,0.55,3586.5,3586.1,2.78848]
[1733239338868,0.55,3586.5,3585.3,0.56894073]
[1733239339123,1.6381,3586.6,3586.5,2.78823]
[1733239339520,1.6381,3586.6,3586.0,2.78858]
[1733239339688,1.6381,3586.6,3586.1,2.78854]
[1733239339891,1.5676,3587.3,3586.1,0.557712]
[1733239340108,1.5676,3587.3,3587.2,2.78767]
[1733239340310,1.82714054,3587.8,3587.7,2.7873]
[1733239340620,1.88152673,3587.8,3586.9,3.0]
[1733239340771,1.62198619,3587.8,3587.7,2.7873]
[1733239342309,0.05438619,3587.8,3587.7,2.7873]
[1733239343239,0.05438619,3587.8,3587.7,3.344777]
[1733239343372,6.19e-06,3587.8,3587.7,3.344777]
[1733239343570,1.73800192,3588.5,3588.4,2.78675]
[1733239346752,1.73800192,3588.5,3588.1,2.78693]
[1733239346753,1.5749,3589.7,3587.7,0.557477]
[1733239346930,0.80954937,3589.6,3589.1,2.78617]
[1733239347483,0.80954937,3589.6,3589.2,2.78612]
[1733239347692,0.80954937,3589.6,3589.1,2.78618]
[1733239347906,1.5749,3589.7,3589.0,2.78627]
[1733239348120,1.5749,3589.7,3588.1,3.0]
[1733239348121,1.83444937,3589.7,3588.9,2.78631]
[1733239348331,1.5749,3589.7,3589.0,2.78623]
[1733239348538,1.5749,3589.7,3588.7,2.7865]
[1733239348702,1.83444937,3589.7,3588.7,2.7865]
[1733239348891,1.5749,3589.7,3588.8,2.78644]
[1733239349095,1.5749,3589.7,3588.2,0.54423589]
[1733239349096,1.60972478,3589.7,3588.3,2.78683]
[1733239349327,0.96003297,3589.6,3588.3,0.33310659]
[1733239349496,1.21958234,3589.6,3589.0,2.78628]
[1733239349711,1.21958234,3589.6,3588.5,2.78667]
[1733239349712,0.25954937,3589.6,3588.5,2.78667]
[1733239349909,0.25954937,3589.8,3589.5,2.7859]
[1733239350116,1.73800192,3589.9,3589.8,2.78567]
[1733239350410,2.31733589,3590.1,3590.0,2.78551]
[1733239350611,2.31733589,3590.3,3589.7,2.78572]
[1733239350797,1.5873,3590.6,3589.9,2.78556]
[1733239351135,1.5873,3590.6,3589.3,2.78605]
[1733239351335,1.5873,3590.6,3590.1,2.78536]
[1733239351541,1.5873,3590.6,3589.4,0.98885682]
[1733239351837,1.5873,3590.6,3590.2,2.78533]
[1733239352247,1.5873,3590.6,3590.2,2.78535]
[1733239352550,1.572,3591.2,3590.5,2.78505]
[1733239352747,1.572,3591.2,3589.6,7.31638823]
[1733239353060,1.572,3591.2,3590.5,2.78511]
[1733239353201,1.572,3591.2,3590.1,3.0]
[1733239353397,1.572,3591.2,3590.1,3.3]
[1733239353643,1.572,3591.2,3590.8,2.78488]
[1733239354153,1.5745,3591.7,3590.1,0.3]
[1733239354447,1.5745,3591.7,3591.1,2.78465]
[1733239354745,1.5745,3591.7,3591.1,2.78461]
[1733239354947,1.5745,3591.7,3590.8,2.78487]
[1733239355242,1.5745,3591.7,3590.9,3.0]
[1733239355452,1.5745,3591.7,3590.8,3.0]
[1733239355617,1.5745,3591.7,3591.2,2.78454]
[1733239355950,1.5745,3591.7,3591.3,2.7845]
[1733239356098,1.5745,3591.7,3590.3,0.57065898]
[1733239356303,1.5425,3592.2,3591.7,2.78418]
[1733239356534,1.5425,3592.2,3590.8,2.78489]
[1733239356535,1.5425,3592.2,3591.5,3.0]
[1733239356755,0.02579843,3592.1,3592.0,5.78396]
[1733239357042,1.5838,3593.5,3592.0,2.78396]
[1733239357247,1.5838,3593.5,3592.3,3.0]
[1733239357841,1.5838,3593.5,3592.6,3.0]
[1733239358044,1.5838,3593.5,3592.7,2.78335]
[1733239358402,1.5838,3593.5,3592.8,2.78333]
[1733239358949,1.5838,3593.5,3593.0,2.78318]
[1733239359154,0.03478648,3593.4,3591.9,3.0]
[1733239359445,1.74218,3593.5,3592.3,2.78371]
[1733239359614,4.52499,3593.5,3592.3,2.78371]
[1733239359799,2.78288,3593.4,3592.1,2.78387]
[1733239360001,1.74218,3593.5,3592.3,2.7837]
[1733239360197,1.74218,3593.5,3592.6,2.78348]
[1733239360443,0.02694657,3593.4,3592.3,2.78372]
[1733239360751,0.02694657,3593.4,3591.3,3.0]
[1733239360752,2.78297,3593.3,3591.3,3.0]
[1733239360952,0.55,3593.1,3591.8,2.7841]
[1733239361247,0.03479133,3593.2,3592.2,2.78377]
[1733239361248,1.5768,3593.0,3592.2,2.78377]
[1733239361449,1.5768,3593.0,3591.8,2.78411]
[1733239361450,1.60360026,3593.0,3592.3,2.78371]
[1733239361749,1.60360026,3593.0,3591.7,0.54680989]
[1733239361961,1.60360026,3593.0,3592.0,2.78389]
[1733239362162,1.60360026,3593.0,3592.4,2.78358]
[1733239362365,1.5768,3593.0,3592.7,2.78341]
[1733239362575,0.02676368,3592.9,3592.7,2.78341]
[1733239362730,0.02676368,3592.9,3592.5,2.78356]
[1733239363069,1.5768,3593.0,3592.5,2.78354]
[1733239363222,1.5768,3593.0,3592.3,2.78365]
[1733239363419,0.02676368,3592.9,3591.7,3.54680989]
[1733239363664,1.5768,3593.0,3591.7,0.54680989]
[1733239363820,0.02638631,3592.8,3591.7,0.90149088]
[1733239364022,0.02638631,3592.8,3591.0,2.78473]
[1733239364023,0.06117769,3592.8,3591.0,2.78473]
[1733239364376,2.78345,3592.7,3591.5,2.78435]
[1733239364880,2.78345,3592.7,3590.4,1.09724772]
[1733239364881,1.6582,3592.3,3590.4,1.09724772]
[1733239365179,1.6582,3592.3,3590.8,0.55345392]
[1733239365482,1.6582,3592.3,3591.5,2.78427]
[1733239365637,1.6582,3592.3,3591.7,2.78419]
[1733239366231,1.6582,3592.3,3591.4,3.0]
[1733239366536,1.6582,3592.3,3591.7,2.78412]
[1733239366768,1.6582,3592.3,3591.4,3.0]
[1733239366963,1.6582,3592.3,3591.8,2.78404]
[1733239367166,1.6582,3592.3,3591.4,3.578446]
[1733239367340,1.6582,3592.3,3591.4,5.7844]
[1733239367676,0.02626092,3592.2,3591.4,5.7844]
[1733239367879,0.02626092,3592.2,3591.1,5.78458]
[1733239368178,0.02626092,3592.2,3591.3,2.78444]
[1733239368381,0.02626092,3592.2,3591.4,5.78442]
[1733239368985,0.02626092,3592.2,3590.8,0.55345392]
[1733239369167,0.02626092,3592.2,3591.1,3.0]
[1733239369415,2.22924328,3592.3,3591.1,3.0]
[1733239369616,2.22924328,3592.3,3591.5,2.78427]
[1733239369923,2.22924328,3592.3,3591.6,3.0]
[1733239370278,2.22924328,3592.3,3590.9,4.25071156]
[1733239370279,2.22924328,3592.3,3591.3,3.0]
[1733239370479,2.22924328,3592.3,3591.8,2.7841]
[1733239370820,1.6582,3592.3,3591.8,2.7841]
[1733239370979,2.7832,3593.0,3591.4,5.78442]
[1733239370980,0.55042599,3592.4,3591.4,3.0]
[1733239371176,0.02618266,3592.2,3592.0,2.78389]
[1733239371381,0.02618266,3592.2,3591.3,3.85938008]
[1733239371382,1.5682,3592.2,3589.6,2.78578]
[1733239371678,1.5682,3591.8,3590.2,2.78531]
[1733239371873,1.5682,3591.8,3590.9,2.7848]
[1733239372105,0.02636199,3591.7,3590.4,2.78513]
[1733239372307,0.02636199,3591.7,3590.8,2.78482]
[1733239372507,0.02636199,3591.7,3590.1,0.54925582]
[1733239372681,0.02636199,3591.7,3591.2,2.78458]
[1733239373127,0.02636199,3591.7,3590.2,0.33347658]
[1733239373128,0.02636199,3591.7,3591.1,2.78458]
[1733239373284,1.5682,3591.8,3591.2,3.0]
[1733239373782,1.5682,3591.8,3590.7,3.0]
[1733239373783,0.0249153,3591.7,3590.7,3.0]
[1733239374086,1.5682,3591.8,3590.9,3.0]
[1733239374429,1.5682,3591.8,3590.9,2.78481]
[1733239374636,0.02669497,3591.7,3591.2,3.0]
[1733239376323,0.02669497,3591.7,3591.1,2.78465]
[1733239376324,0.02669497,3591.7,3591.0,2.78472]
[1733239376526,1.5682,3591.8,3591.1,3.0]
[1733239376679,0.02665574,3591.6,3591.1,3.0]
[1733239376884,1.5682,3591.8,3591.1,3.0]
[1733239377086,1.5682,3591.8,3590.5,0.56424515]
[1733239377087,0.02661652,3591.5,3590.5,0.56424515]
[1733239377332,1.5682,3591.8,3591.3,2.7845]
[1733239377493,0.02654463,3591.4,3591.2,2.78452]
[1733239377803,1.5682,3591.8,3591.3,2.78449]
[1733239378221,0.02669497,3591.7,3591.2,2.78457]
[1733239378400,0.02669497,3591.7,3590.6,2.78504]
[1733239378739,0.02669497,3591.7,3590.7,3.0]
[1733239378894,0.02669497,3591.7,3591.2,3.0]
[1733239379909,0.02669497,3591.7,3591.4,2.78438]
[1733239380139,4.42484,3592.5,3591.4,2.78438]
[1733239380342,0.02677193,3591.6,3590.7,3.0]
[1733239380524,0.70818056,3592.3,3591.0,3.0]
[1733239380725,0.02673271,3591.5,3591.2,2.78458]
[1733239380928,0.67338239,3592.2,3591.0,3.0]
[1733239380929,0.25919014,3592.1,3591.0,3.0]
[1733239381113,0.0265522,3591.4,3591.3,2.7845]
[1733239381313,0.25919014,3591.9,3591.3,2.7845]
[1733239381529,0.02510088,3591.4,3591.1,5.78461]
[1733239381849,0.41535197,3592.4,3591.9,2.78403]
[1733239382028,1.6412,3592.5,3591.6,3.0]
[1733239382349,2.78329,3592.9,3591.8,2.78406]
[1733239382550,0.02638649,3592.4,3591.4,3.0]
[1733239382851,0.41557833,3593.0,3591.7,3.0]
[1733239382996,2.7832,3593.0,3591.9,2.78397]
[1733239383190,2.78335,3592.8,3591.8,2.78411]
[1733239383640,0.57629011,3592.7,3591.9,3.0]
[1733239383940,0.83621828,3592.7,3591.8,3.0]
[1733239384138,0.83621828,3592.7,3591.2,0.578461]
[1733239384139,0.55,3592.3,3591.2,0.578461]
[1733239384341,0.55,3592.3,3590.3,2.78521]
[1733239384342,0.55,3592.3,3591.5,2.78427]
[1733239384537,0.55,3592.3,3591.4,3.0]
[1733239384538,0.70068191,3592.2,3591.4,3.0]
[1733239384689,1.22632744,3592.1,3591.4,2.78442]
[1733239384895,1.22632744,3592.1,3591.1,3.0]
[1733239384896,0.55,3591.9,3591.1,3.0]
[1733239385097,1.535,3592.4,3591.9,3.0]
[1733239385319,1.535,3592.4,3591.1,3.0]
[1733239385320,0.67665173,3592.3,3592.0,2.78394]
[1733239385534,1.535,3592.4,3592.0,2.78394]
[1733239385535,0.26023978,3592.2,3592.0,2.78394]
[1733239385739,1.535,3592.4,3592.0,2.78394]
[1733239385905,0.26025517,3592.3,3592.0,2.78394]
[1733239386234,0.26040387,3592.2,3591.9,3.0]
[1733239386445,0.81040387,3592.1,3591.9,5.78404]
[1733239386742,1.535,3592.4,3591.6,3.0]
[1733239386892,1.535,3592.4,3591.9,5.78397]
[1733239386893,0.02628017,3592.0,3591.9,5.78397]
[1733239387552,0.02628017,3592.0,3591.9,6.64079]
[1733239387698,1.96864323,3593.1,3591.9,6.64079]
[1733239387699,1.5351,3593.1,3591.9,6.64079]
[1733239387898,0.67705688,3593.0,3592.9,2.78325]
[1733239388242,0.67705688,3593.0,3592.9,5.78325]
[1733239388425,1.6628,3593.7,3593.3,2.78295]
[1733239388607,0.67691102,3593.6,3593.3,2.78295]
[1733239388810,0.67691102,3593.5,3593.3,2.78295]
[1733239389028,0.67691102,3593.4,3593.3,2.78295]
[1733239389391,0.67691102,3593.4,3593.0,2.78318]
[1733239389392,0.26035039,3593.4,3593.0,2.78318]
[1733239389638,0.26035039,3593.4,3592.3,2.78367]
[1733239389639,0.26035039,3593.3,3592.6,2.78349]
[1733239389841,0.26035039,3593.2,3593.1,2.78308]
[1733239390347,0.26035039,3593.2,3592.9,3.0]
[1733239390496,0.26035039,3593.1,3592.9,3.0]
[1733239390845,0.26035039,3593.0,3592.9,5.78326]
[1733239391051,0.26035039,3593.0,3592.9,6.361586]
[1733239391353,0.26035039,3593.0,3592.9,5.78326]
[1733239391511,0.02540638,3593.0,3592.9,5.78326]
[1733239391713,0.4161992,3593.5,3592.9,5.78326]
[1733239391957,0.02540638,3593.0,3592.7,3.0]
[1733239392107,1.6628,3593.7,3593.1,2.7831]
[1733239392411,1.22634699,3593.6,3593.1,2.7831]
[1733239392611,0.67634699,3593.5,3592.9,2.78323]
[1733239392832,1.22625387,3593.4,3592.9,3.0]
[1733239393146,0.55,3593.2,3592.0,2.78396]
[1733239393294,0.26013346,3593.1,3592.8,2.78329]
[1733239393499,0.02534011,3593.1,3592.8,2.78329]
[1733239393929,0.02534011,3593.1,3592.1,1.20730946]
[1733239393930,0.55,3592.9,3592.1,1.20730946]
[1733239394112,0.55,3592.7,3592.5,2.78353]
[1733239394314,0.55,3592.7,3592.3,3.0]
[1733239394533,0.02692452,3592.6,3592.5,5.78352]
[1733239394734,0.55,3592.7,3592.5,3.0]
[1733239394936,0.02526004,3592.6,3592.5,3.0]
[1733239395120,0.02526004,3592.6,3592.5,5.78357]
[1733239395329,0.55,3592.7,3592.5,5.78357]